{"text_format":"2","workbook":"xlsx","n_sheets":1,"sheets":["Spesenabrechn."],"not_rendered":{"charts":0,"images":0,"macros":0,"external_links":0,"defined_names":1,"comments":0,"pivot_tables":0},"unopened":[],"bounds":{"document_bytes":16777216,"sheet_cells":100000,"run_cost":"one","rows_first":2000,"rows_last":500,"rows_between":2000,"halvings":0,"cell_chars":16384,"cell_head_chars":4096},"cells_cut":0,"cells_raw":0,"read":"whole","date_system":"1900"}

{"sheet":"Spesenabrechn.","index":0,"n_rows":37,"n_cols":10,"rows_kept":37,"cut":false,"hidden":false,"merged":[[2,0,3,0],[2,1,3,1],[34,3,34,9],[35,3,35,9]]}
["NAME, VORNAME: ",null,null,"Spesenabrechnung vom  "]
["Ressort / Funktion:    "]
["Datum","Zweck und Ort","Zeit-","Zeitaufw.","Stunden-","Sitzungs-/","Fahrspesen",null,"Andere","Total"]
[null,null,"aufwand","Anzahl Std.","entsch.","Taggeld","Km","CHF","Spesen","Auszahlung"]
[{"$nulls":4},{"$f":"SUM(D5*$A$37)","v":0},null,null,{"$f":"SUM(G5*$A$36)","v":0},null,{"$f":"SUM(E5,F5,H5,I5)","v":0}]
[{"$nulls":4},{"$f":"SUM(D6*$A$37)","v":0},null,null,{"$f":"SUM(G6*$A$36)","v":0},null,{"$f":"SUM(E6,F6,H6,I6)","v":0}]
[{"$nulls":4},0,null,null,0,null,0]
[{"$nulls":4},0,null,null,0,null,0]
[{"$nulls":4},0,null,null,0,null,0]
[{"$nulls":4},0,null,null,0,null,0]
[{"$nulls":4},0,null,null,0,null,0]
[{"$nulls":4},0,null,null,0,null,0]
[{"$nulls":4},0,null,null,0,null,0]
[{"$nulls":4},0,null,null,0,null,0]
[{"$nulls":4},0,null,null,0,null,0]
[{"$nulls":4},0,null,null,0,null,0]
[{"$nulls":4},0,null,null,0,null,0]
[{"$nulls":4},0,null,null,0,null,0]
[{"$nulls":4},0,null,null,0,null,0]
[{"$nulls":4},0,null,null,0,null,0]
[{"$nulls":4},0,null,null,0,null,0]
[{"$nulls":4},0,null,null,0,null,0]
[{"$nulls":4},0,null,null,0,null,0]
[{"$nulls":4},0,null,null,0,null,0]
[{"$nulls":4},0,null,null,0,null,0]
[{"$nulls":4},0,null,null,0,null,0]
[{"$nulls":4},0,null,null,0,null,0]
[{"$nulls":4},0,null,null,0,null,0]
[{"$nulls":4},0,null,null,0,null,0]
[{"$nulls":4},0,null,null,0,null,0]
[{"$nulls":4},0,null,null,0,null,0]
["Kontrolle:",null,{"$f":"SUM(C5:C31)","v":0},{"$f":"SUM(D5:D31)","v":0},{"$f":"SUM(E5:E31)","v":0},0,0,0,0,{"$f":"SUM(E32+F32+H32+I32)","v":0}]
["Neue Ansätze ","Abendsitzung bis zu 2 Std.: CHF 72.80",{"$nulls":4},"Der Auszahlungsbetrag ist zu überweisen auf:",null,null,{"$f":"SUM(J5:J31)","v":0}]
["ab 2025","Abendsitzung 2 bis zu 4 Std. CHF 109.20"]
[null,"ganzer Tag: CHF 291.20, halber Tag CHF 145.60"]
[0.8,"Km-Entschädigung: CHF -.80/Km",null,"Bankname und IBAN-Nummer mitteilen - keine alten Postcheckkontonummern mehr!"]
[31.2,"Stundenlohn CHF 31.20",{"$nulls":4},"(Wenn möglich aktueller Einzahlungsschein beilegen - Nur IBAN-Nr. oder QR-Code)"]